fUST/lending_fUST_20241208
["ID","MTS","AMOUNT","RATE_DAILY","PERIOD"]
[344599468,1733595039842,-500.0,0.00024657,2]
[344599469,1733595039851,-500.0,0.00024657,2]
[344599470,1733595039860,-500.0,0.00024657,2]
[344599471,1733595039870,-500.0,0.00024657,2]
[344599472,1733595039879,-500.0,0.00024657,2]
[344599473,1733595039889,-500.0,0.00024657,2]
[344599474,1733595039899,-259.90143432,0.00024657,2]
[344599475,1733595039909,-500.0,0.00024657,2]
[344599476,1733595039919,-500.0,0.00024657,2]
[344599477,1733595039928,-500.0,0.00024657,2]
[344599478,1733595039938,-500.0,0.00024657,2]
[344599479,1733595039948,-500.0,0.00024657,2]
[344599480,1733595039955,-500.0,0.00024657,2]
[344599481,1733595039965,-500.0,0.00024657,2]
[344599482,1733595039974,-563.3,0.00024657,2]
[344599483,1733595039983,-500.0,0.00024657,2]
[344599484,1733595039993,-500.0,0.00024657,2]
[344599485,1733595040003,-500.0,0.00024657,2]
[344599486,1733595040012,-500.0,0.00024657,2]
[344599487,1733595040023,-619.75,0.00024657,2]
[344599488,1733595040032,-500.83,0.00024657,2]
[344599489,1733595040041,-500.0,0.00024657,2]
[344599490,1733595040050,-500.0,0.00024657,2]
[344599491,1733595040060,-500.0,0.00024657,2]
[344599492,1733595040070,-500.0,0.00024657,2]
[344599493,1733595040080,-828.58,0.00024657,2]
[344599494,1733595040090,-545.90598303,0.00024657,2]
[344599495,1733595040099,-500.0,0.00024657,2]
[344599496,1733595040109,-183.05025451,0.00024657,2]
[344599497,1733595040121,-200.0,0.00024657,2]
[344599498,1733595040132,-500.0,0.00024657,2]
[344599499,1733595040141,-500.0,0.00024657,2]
[344599500,1733595040152,-500.0,0.00024657,2]
[344599501,1733595040161,-500.0,0.00024657,2]
[344599502,1733595040171,-500.0,0.00024657,2]
[344599503,1733595040179,-500.0,0.00024657,2]
[344599504,1733595040189,-500.0,0.00024657,2]
[344599505,1733595040198,-500.0,0.00024657,2]
[344599506,1733595040207,-500.0,0.00024657,2]
[344599507,1733595040215,-500.0,0.00024657,2]
[344599508,1733595040225,-500.0,0.00024657,2]
[344599509,1733595040312,-500.0,0.00024657,2]
[344599510,1733595040324,-500.0,0.00024657,2]
[344599511,1733595040334,-500.0,0.00024657,2]
[344599512,1733595040343,-500.0,0.00024657,2]
[344599513,1733595040353,-500.0,0.00024657,2]
[344599514,1733595040362,-500.0,0.00024657,2]
[344599515,1733595040375,-500.0,0.00024657,2]
[344599516,1733595040385,-657.42,0.00024657,2]
[344599517,1733595040394,-500.0,0.00024657,2]
[344599518,1733595040405,-601.27,0.00024657,2]
[344599519,1733595040414,-500.0,0.00024657,2]
[344599520,1733595040423,-500.0,0.00024657,2]
[344599521,1733595040432,-500.0,0.00024657,2]
[344599522,1733595040443,-826.65,0.00024657,2]
[344599523,1733595040453,-500.0,0.00024657,2]
[344599524,1733595040463,-500.0,0.00024657,2]
[344599525,1733595040472,-500.0,0.00024657,2]
[344599526,1733595040481,-500.0,0.00024657,2]
[344599527,1733595040491,-500.0,0.00024657,2]
[344599528,1733595040500,-500.0,0.00024657,2]
[344599529,1733595040510,-500.0,0.00024657,2]
[344599530,1733595040519,-500.0,0.00024657,2]
[344599531,1733595040528,-500.0,0.00024657,2]
[344599532,1733595040538,-500.0,0.00024657,2]
[344599533,1733595040547,-500.0,0.00024657,2]
[344599534,1733595040557,-566.84,0.00024657,2]
[344599535,1733595040566,-500.0,0.00024657,2]
[344599536,1733595040576,-500.0,0.00024657,2]
[344599537,1733595040585,-500.0,0.00024657,2]
[344599538,1733595040595,-151.0,0.00024657,7]
[344599539,1733595040605,-500.0,0.00024657,2]
[344599540,1733595040614,-500.0,0.00024657,2]
[344599541,1733595040623,-330.94985323,0.00024657,2]
[344599542,1733595040632,-499.79176919,0.00024657,2]
[344599573,1733595043134,-0.20823081,0.00024657,2]
[344599574,1733595043144,-500.0,0.00024657,2]
[344599575,1733595043156,-500.0,0.00024657,2]
[344599576,1733595043165,-500.0,0.00024657,2]
[344599577,1733595043174,-500.0,0.00024657,2]
[344599578,1733595043184,-500.0,0.00024657,2]
[344599579,1733595043193,-500.0,0.00024657,2]
[344599580,1733595043203,-500.0,0.00024657,2]
[344599581,1733595043216,-1494.77,0.00024657,2]
[344599582,1733595043231,-500.0,0.00024657,2]
[344599583,1733595043245,-500.0,0.00024657,2]
[344599584,1733595043257,-320.24812744,0.00024657,2]
[344599585,1733595043269,-531.1,0.00024657,2]
[344599586,1733595043284,-500.0,0.00024657,2]
[344599587,1733595043296,-7088.83,0.00024657,2]
[344599588,1733595043309,-500.0,0.00024657,2]
[344599589,1733595043322,-500.0,0.00024657,2]
[344599590,1733595043334,-500.0,0.00024657,2]
[344599591,1733595043347,-771.33,0.00024657,2]
[344599592,1733595043362,-500.0,0.00024657,2]
[344599593,1733595043374,-259.54092866,0.00024657,2]
[344599594,1733595043386,-1213.14,0.00024657,2]
[344599595,1733595043398,-500.0,0.00024657,2]
[344599596,1733595043411,-500.0,0.00024657,2]
[344599597,1733595043425,-500.0,0.00024657,2]
[344599598,1733595043437,-500.0,0.00024657,2]
[344599599,1733595043450,-500.0,0.00024657,2]
[344599600,1733595043461,-1160.6,0.00024657,2]
[344599601,1733595043472,-500.0,0.00024657,2]
[344599602,1733595043484,-748.62,0.00024657,2]
[344599603,1733595043497,-500.0,0.00024657,2]
[344599604,1733595043510,-666.48,0.00024657,2]
[344599605,1733595043524,-504.08,0.00024657,2]
[344599606,1733595043537,-500.0,0.00024657,2]
[344599607,1733595043550,-500.0,0.00024657,2]
[344599608,1733595043564,-500.0,0.00024657,2]
[344599609,1733595043579,-558.24,0.00024657,2]
[344599610,1733595043590,-500.0,0.00024657,2]
[344599611,1733595043600,-500.0,0.00024657,2]
[344599612,1733595043611,-500.0,0.00024657,2]
[344599613,1733595043623,-837.77,0.00024657,2]
[344599614,1733595043637,-573.47,0.00024657,2]
[344599615,1733595043652,-500.0,0.00024657,2]
[344599616,1733595043668,-500.0,0.00024657,2]
[344599617,1733595043679,-1146.84,0.00024657,2]
[344599618,1733595043691,-2105.24,0.00024657,2]
[344599619,1733595043703,-500.0,0.00024657,2]
[344599620,1733595043715,-500.0,0.00024657,2]
[344599621,1733595043726,-500.0,0.00024657,2]
[344599622,1733595043739,-537.03,0.00024657,2]
[344599623,1733595043751,-500.0,0.00024657,2]
[344599624,1733595043763,-500.0,0.00024657,2]
[344599625,1733595043776,-1238.79,0.00024657,2]
[344599626,1733595043789,-500.0,0.00024657,2]
[344599627,1733595043801,-935.44,0.00024657,2]
[344599628,1733595043812,-500.0,0.00024657,2]
[344599629,1733595043824,-500.0,0.00024657,2]
[344599630,1733595043836,-424.80216903,0.00024657,2]
[344599631,1733595043847,-500.0,0.00024657,2]
[344599632,1733595043859,-500.0,0.00024657,2]
[344599633,1733595043870,-500.0,0.00024657,2]
[344599634,1733595043881,-500.0,0.00024657,2]
[344599635,1733595043893,-178.00328774,0.00024657,2]
[344599636,1733595043934,-202.0,0.00024557,2]
[344599637,1733595043946,-321.99671226,0.00024657,2]
[344599638,1733595043957,-500.0,0.00024657,2]
[344599639,1733595043969,-418.62554073,0.00024657,2]
[344599640,1733595043981,-626.09182754,0.00024657,2]
[344599668,1733595443989,29239.70550648,0.00015,20]
[344599671,1733595910963,164.487564,0.00013973,2]
[344599694,1733596238084,-164.487564,0.00020807,2]
[344599695,1733596238094,-210.66568821,0.0002201,16]
[344599696,1733596238104,-277.600069,0.0002352,2]
[344599698,1733596238114,-207.957,0.0002368,2]
[344599700,1733596238124,-600.0,0.00024,2]
[344599701,1733596238134,-600.0,0.0002425,2]
[344599702,1733596238143,-300.0,0.00024383,2]
[344599703,1733596238152,-300.0,0.00024383,2]
[344599704,1733596238162,-476.32997629,0.00024384,2]
[344599706,1733596240183,-8246.0398706,0.00024384,2]
[344599707,1733596240193,-2169.0,0.00024471,2]
[344599708,1733596240202,-2373.0,0.00024471,2]
[344599709,1733596240211,-351.0167534,0.000245,2]
[344599710,1733596240220,-351.0167534,0.000245,2]
[344599711,1733596240229,-1008.0,0.000245,2]
[344599712,1733596240239,-603.45091927,0.000245,2]
[344599713,1733596240248,-222.96014357,0.00024557,2]
[344599714,1733596240258,-747.16152669,0.00024557,2]
[344599715,1733596240268,-351.0167534,0.000246,2]
[344599716,1733596240277,-222.96014354,0.00024626,2]
[344599717,1733596240286,-173.143,0.00024626,7]
[344599718,1733596240295,-482.74581577,0.00024657,2]
[344599719,1733596240305,-500.0,0.00024657,2]
[344599720,1733596240314,-500.0,0.00024657,2]
[344599721,1733596240323,-593.93,0.00024657,2]
[344599722,1733596240332,-500.0,0.00024657,2]
[344599723,1733596240342,-500.0,0.00024657,2]
[344599724,1733596240351,-500.0,0.00024657,2]
[344599725,1733596240360,-500.0,0.00024657,2]
[344599726,1733596240369,-310.51404145,0.00024657,2]
[344599727,1733596240379,-500.0,0.00024657,2]
[344599728,1733596240390,-500.0,0.00024657,2]
[344599729,1733596240399,-500.0,0.00024657,2]
[344599730,1733596240408,-528.09079856,0.00024657,2]
[344599731,1733596240418,-500.0,0.00024657,2]
[344599732,1733596240427,-500.0,0.00024657,2]
[344599733,1733596240436,-500.0,0.00024657,2]
[344599734,1733596240445,-500.0,0.00024657,2]
[344599735,1733596240454,-500.0,0.00024657,2]
[344599736,1733596240464,-500.0,0.00024657,2]
[344599737,1733596240473,-500.0,0.00024657,2]
[344599738,1733596240482,-792.21,0.00024657,2]
[344599739,1733596240492,-500.0,0.00024657,2]
[344599740,1733596240501,-500.0,0.00024657,2]
[344599741,1733596240511,-500.0,0.00024657,2]
[344599742,1733596240520,-500.0,0.00024657,2]
[344599743,1733596240529,-500.0,0.00024657,2]
[344599744,1733596240538,-500.0,0.00024657,2]
[344599745,1733596240554,-500.0,0.00024657,2]
[344599746,1733596240568,-500.0,0.00024657,2]
[344599747,1733596240579,-500.0,0.00024657,2]
[344599748,1733596240591,-500.0,0.00024657,2]
[344599749,1733596240609,-500.0,0.00024657,2]
[344599750,1733596240781,-500.0,0.00024657,2]
[344599751,1733596240791,-500.0,0.00024657,2]
[344599752,1733596240800,-500.0,0.00024657,2]
[344599753,1733596240810,-500.0,0.00024657,2]
[344599754,1733596240820,-500.0,0.00024657,2]
[344599755,1733596240829,-500.0,0.00024657,2]
[344599756,1733596240839,-500.0,0.00024657,2]
[344599757,1733596240848,-500.0,0.00024657,2]
[344599758,1733596240858,-500.0,0.00024657,2]
[344599759,1733596240867,-500.0,0.00024657,2]
[344599760,1733596240878,-253.57089568,0.00024657,2]
[344599761,1733596240888,-500.0,0.00024657,2]
[344599762,1733596240897,-500.0,0.00024657,2]
[344599763,1733596240906,-500.0,0.00024657,2]
[344599764,1733596240915,-500.0,0.00024657,2]
[344599765,1733596240926,-500.0,0.00024657,2]
[344599766,1733596240935,-500.0,0.00024657,2]
[344599767,1733596240945,-612.96264692,0.00024657,2]
[344599768,1733596240954,-500.0,0.00024657,2]
[344599769,1733596240963,-794.06,0.00024657,2]
[344599770,1733596240972,-500.0,0.00024657,2]
[344599771,1733596240982,-500.0,0.00024657,2]
[344599772,1733596240992,-630.03,0.00024657,2]
[344599773,1733596241002,-500.0,0.00024657,2]
[344599774,1733596241011,-500.0,0.00024657,2]
[344599775,1733596241021,-576.22,0.00024657,2]
[344599776,1733596241036,-500.0,0.00024657,2]
[344599777,1733596241045,-500.0,0.00024657,2]
[344599778,1733596241054,-500.0,0.00024657,2]
[344599779,1733596241063,-500.0,0.00024657,2]
[344599780,1733596241073,-605.55386561,0.00024657,2]
[344599781,1733596241084,-500.0,0.00024657,2]
[344599782,1733596241093,-500.0,0.00024657,2]
[344599783,1733596241104,-500.0,0.00024657,2]
[344599784,1733596241114,-500.0,0.00024657,2]
[344599785,1733596241124,-500.0,0.00024657,2]
[344599786,1733596241135,-500.0,0.00024657,2]
[344599787,1733596241145,-500.0,0.00024657,2]
[344599788,1733596241154,-500.0,0.00024657,2]
[344599789,1733596241163,-543.22,0.00024657,2]
[344599790,1733596241172,-500.0,0.00024657,2]
[344599791,1733596241182,-500.0,0.00024657,2]
[344599792,1733596241192,-500.0,0.00024657,2]
[344599793,1733596241202,-500.0,0.00024657,2]
[344599794,1733596241211,-500.0,0.00024657,2]
[344599795,1733596241220,-500.0,0.00024657,2]
[344599796,1733596241229,-500.0,0.00024657,2]
[344599797,1733596241238,-500.0,0.00024657,2]
[344599798,1733596241247,-500.0,0.00024657,2]
[344599799,1733596241256,-500.0,0.00024657,2]
[344599800,1733596241265,-500.0,0.00024657,2]
[344599801,1733596241275,-500.0,0.00024657,2]
[344599802,1733596241283,-500.0,0.00024657,2]
[344599803,1733596241293,-500.0,0.00024657,2]
[344599804,1733596241302,-500.0,0.00024657,2]
[344599805,1733596241311,-580.06,0.00024657,2]
[344599806,1733596241321,-603.13076302,0.00024657,2]
[344599807,1733596241330,-6793.47,0.00024657,2]
[344599808,1733596241339,-500.0,0.00024657,2]
[344599809,1733596241348,-500.0,0.00024657,2]
[344599810,1733596241357,-500.0,0.00024657,2]
[344599811,1733596241366,-500.0,0.00024657,2]
[344599812,1733596241378,-717.43,0.00024657,2]
[344599813,1733596241389,-1432.49,0.00024657,2]
[344599814,1733596241398,-1162.59,0.00024657,2]
[344599815,1733596241407,-500.0,0.00024657,2]
[344599816,1733596241416,-500.0,0.00024657,2]
[344599817,1733596241426,-500.0,0.00024657,2]
[344599818,1733596241435,-508.97,0.00024657,2]
[344599819,1733596241444,-500.0,0.00024657,2]
[344599820,1733596241453,-500.0,0.00024657,2]
[344599821,1733596241463,-500.0,0.00024657,2]
[344599822,1733596241472,-500.0,0.00024657,2]
[344599823,1733596241481,-500.0,0.00024657,2]
[344599824,1733596241490,-500.0,0.00024657,2]
[344599825,1733596241500,-500.0,0.00024657,2]
[344599826,1733596241510,-638.71,0.00024657,2]
[344599827,1733596241519,-500.0,0.00024657,2]
[344599828,1733596241529,-500.0,0.00024657,2]
[344599829,1733596241538,-500.0,0.00024657,2]
[344599830,1733596241547,-500.0,0.00024657,2]
[344599831,1733596241556,-500.0,0.00024657,2]
[344599832,1733596241566,-500.0,0.00024657,2]
[344599833,1733596241575,-1112.24,0.00024657,2]
[344599834,1733596241584,-534.98,0.00024657,2]
[344599835,1733596241593,-500.0,0.00024657,2]
[344599836,1733596241602,-500.0,0.00024657,2]
[344599837,1733596241612,-802.86,0.00024657,2]
[344599838,1733596241621,-500.0,0.00024657,2]
[344599839,1733596241632,-896.46,0.00024657,2]
[344599840,1733596241641,-570.50083856,0.00024657,2]
[344599841,1733596241651,-2017.52,0.00024657,2]
[344599842,1733596241660,-1099.06,0.00024657,2]
[344599843,1733596241669,-500.0,0.00024657,2]
[344599844,1733596241679,-514.66,0.00024657,2]
[344599845,1733596241688,-500.0,0.00024657,2]
[344599846,1733596241698,-1187.17,0.00024657,2]
[344599847,1733596241707,-500.0,0.00024657,2]
[344599848,1733596241716,-500.0,0.00024657,2]
[344599849,1733596241725,-549.58,0.00024657,2]
[344599850,1733596241734,-956.1,0.00024657,2]
[344599851,1733596241743,-500.0,0.00024657,2]
[344599852,1733596241753,-500.0,0.00024657,2]
[344599853,1733596241762,-500.0,0.00024657,2]
[344599854,1733596241771,-500.0,0.00024657,2]
[344599855,1733596241781,-549.36402779,0.00024657,2]
[344599856,1733596241790,-500.0,0.00024657,2]
[344599857,1733596241799,-500.0,0.00024657,2]
[344599858,1733596241809,-1232.65,0.00024657,2]
[344599859,1733596241818,-500.0,0.00024657,2]
[344599860,1733596241827,-6152.36480457,0.00024657,2]
[344599865,1733596243370,-4158.84519543,0.00024657,2]
[344599866,1733596243381,-683.1,0.00024657,2]
[344599867,1733596243390,-500.0,0.00024657,2]
[344599868,1733596243401,-500.0,0.00024657,2]
[344599869,1733596243411,-500.0,0.00024657,2]
[344599870,1733596243421,-183.93192261,0.00024657,2]
[344599871,1733596243432,-422.05193617,0.00024657,2]
[344599872,1733596243442,-500.0,0.00024657,2]
[344599873,1733596243451,-539.83,0.00024657,2]
[344599874,1733596243461,-739.19,0.00024657,2]
[344599875,1733596243471,-500.0,0.00024657,2]
[344599876,1733596243481,-200.0,0.00024658,15]
[344599877,1733596243491,-222.96014354,0.00024694,2]
[344599878,1733596243500,-338.49,0.000247,2]
[344599879,1733596243511,-222.96014354,0.00024763,2]
[344599880,1733596243520,-222.96014354,0.00024831,2]
[344599881,1733596243530,-155.45081397,0.00024884,2]
[344599882,1733596243540,-500.0,0.00024925,2]
[344599883,1733596243549,-500.0,0.00024925,2]
[344599884,1733596243559,-500.0,0.00024925,2]
[344599885,1733596243568,-500.0,0.00024925,2]
[344599886,1733596243578,-500.0,0.00024925,2]
[344599887,1733596243587,-610.27547783,0.00024925,2]
[344599888,1733596243597,-500.0,0.00024925,2]
[344599889,1733596243606,-500.0,0.00024925,2]
[344599890,1733596243616,-500.0,0.00024925,2]
[344599891,1733596243625,-500.0,0.00024925,2]
[344599892,1733596243635,-500.0,0.00024925,2]
[344599893,1733596243645,-500.0,0.00024925,2]
[344599894,1733596243654,-249.99686379,0.00024925,2]
[344599895,1733596243664,-471.57557955,0.00024925,2]
[344599896,1733596243673,-500.0,0.00024925,2]
[344599897,1733596243683,-500.0,0.00024925,2]
[344599898,1733596243692,-168.81646827,0.0002493,2]
[344599899,1733596243702,-500.0,0.0002493,2]
[344599900,1733596243712,-172.64380918,0.0002493,2]
[344599901,1733596243721,-168.41478479,0.0002493,2]
[344599902,1733596243731,-250.78460232,0.0002493,2]
[344599903,1733596243741,-500.0,0.0002493,2]
[344599904,1733596243751,-500.0,0.0002493,2]
[344599905,1733596243761,-500.0,0.0002493,2]
[344599906,1733596243771,-131144.14957028,0.00024931,2]
[344599907,1733596243781,-183.7267338,0.00024931,2]
[344599908,1733596243791,-500.0,0.00024931,2]
[344599909,1733596243801,-500.0,0.00024931,2]
[344599910,1733596243811,-593.93,0.00024931,2]
[344599911,1733596243821,-500.0,0.00024931,2]
[344599912,1733596243831,-500.0,0.00024931,2]
[344599913,1733596243841,-500.0,0.00024931,2]
[344599914,1733596243851,-500.0,0.00024931,2]
[344599915,1733596243862,-500.0,0.00024931,2]
[344599916,1733596243872,-500.0,0.00024931,2]
[344599917,1733596243882,-500.0,0.00024931,2]
[344599918,1733596243892,-500.0,0.00024931,2]
[344599919,1733596243901,-500.0,0.00024931,2]
[344599920,1733596243911,-500.0,0.00024931,2]
[344599921,1733596243921,-500.0,0.00024931,2]
[344599922,1733596243931,-500.0,0.00024931,2]
[344599923,1733596243941,-500.0,0.00024931,2]
[344599924,1733596243950,-500.0,0.00024931,2]
[344599925,1733596243961,-792.21,0.00024931,2]
[344599926,1733596243970,-500.0,0.00024931,2]
[344599927,1733596243980,-500.0,0.00024931,2]
[344599928,1733596243990,-500.0,0.00024931,2]
[344599929,1733596244000,-500.0,0.00024931,2]
[344599930,1733596244009,-500.0,0.00024931,2]
[344599931,1733596244019,-500.0,0.00024931,2]
[344599932,1733596244029,-500.0,0.00024931,2]
[344599933,1733596244042,-500.0,0.00024931,2]
[344599934,1733596244052,-500.0,0.00024931,2]
[344599935,1733596244062,-500.0,0.00024931,2]
[344599936,1733596244072,-500.0,0.00024931,2]
[344599937,1733596244084,-500.0,0.00024931,2]
[344599938,1733596244094,-500.0,0.00024931,2]
[344599939,1733596244104,-500.0,0.00024931,2]
[344599940,1733596244113,-500.0,0.00024931,2]
[344599941,1733596244124,-417.71761405,0.00024931,2]
[344599942,1733596244136,-500.0,0.00024931,2]
[344599943,1733596244147,-500.0,0.00024931,2]
[344599944,1733596244157,-500.0,0.00024931,2]
[344599945,1733596244166,-500.0,0.00024931,2]
[344599946,1733596244175,-500.0,0.00024931,2]
[344599947,1733596244184,-500.0,0.00024931,2]
[344599948,1733596244193,-500.0,0.00024931,2]
[344599949,1733596244203,-500.0,0.00024931,2]
[344599950,1733596244212,-500.0,0.00024931,2]
[344599951,1733596244222,-623.39261052,0.00024931,2]
[344599952,1733596244232,-500.0,0.00024931,2]
[344599953,1733596244242,-794.06,0.00024931,2]
[344599954,1733596244251,-500.0,0.00024931,2]
[344599955,1733596244261,-500.0,0.00024931,2]
[344599956,1733596244270,-630.03,0.00024931,2]
[344599957,1733596244280,-500.0,0.00024931,2]
[344599958,1733596244290,-500.0,0.00024931,2]
[344599959,1733596244301,-576.22,0.00024931,2]
[344599960,1733596244407,-524.23816126,0.00024931,2]
[344599961,1733596244417,-151.0,0.00024931,7]
[344599962,1733596244427,-151.0,0.00024931,7]
[344599963,1733596244436,-151.0,0.00024931,7]
[344599964,1733596244446,-500.0,0.00024931,2]
[344599965,1733596244455,-500.0,0.00024931,2]
[344599966,1733596244465,-500.0,0.00024931,2]
[344599967,1733596244474,-500.0,0.00024931,2]
[344599968,1733596244484,-495.08033633,0.00024931,2]
[344599969,1733596244494,-500.0,0.00024931,2]
[344599970,1733596244504,-500.0,0.00024931,2]
[344599971,1733596244513,-500.0,0.00024931,2]
[344599972,1733596244523,-500.0,0.00024931,2]
[344599973,1733596244532,-500.0,0.00024931,2]
[344599974,1733596244542,-500.0,0.00024931,2]
[344599975,1733596244551,-500.0,0.00024931,2]
[344599976,1733596244561,-543.22,0.00024931,2]
[344599977,1733596244571,-500.0,0.00024931,2]
[344599978,1733596244581,-500.0,0.00024931,2]
[344599979,1733596244590,-503.45203423,0.00024931,2]
[344599980,1733596244599,-500.0,0.00024931,2]
[344599981,1733596244609,-500.0,0.00024931,2]
[344599982,1733596244619,-500.0,0.00024931,2]
[344599983,1733596244628,-500.0,0.00024931,2]
[344599984,1733596244638,-151.0,0.00024931,7]
[344599985,1733596244648,-156.078088,0.00024931,7]
[344599986,1733596244657,-500.0,0.00024931,2]
[344599987,1733596244667,-500.0,0.00024931,2]
[344599988,1733596244676,-500.0,0.00024931,2]
[344599989,1733596244686,-500.0,0.00024931,2]
[344599990,1733596244695,-500.0,0.00024931,2]
[344599991,1733596244704,-500.0,0.00024931,2]
[344599992,1733596244714,-500.0,0.00024931,2]
[344599993,1733596244723,-429.863918,0.00024931,7]
[344599994,1733596244732,-429.863918,0.00024931,7]
[344599995,1733596244741,-429.863918,0.00024931,7]
[344599996,1733596244751,-580.06,0.00024931,2]
[344599997,1733596244760,-429.863918,0.00024931,7]
[344599998,1733596244770,-429.863918,0.00024931,7]
[344599999,1733596244779,-429.863918,0.00024931,7]
[344600000,1733596244789,-2576.973459,0.00024931,2]
[344600001,1733596244804,-4216.496541,0.00024931,2]
[344600002,1733596244813,-500.0,0.00024931,2]
[344600003,1733596244823,-500.0,0.00024931,2]
[344600004,1733596244832,-500.0,0.00024931,2]
[344600005,1733596244842,-500.0,0.00024931,2]
[344600006,1733596244852,-717.43,0.00024931,2]
[344600007,1733596244862,-1432.49,0.00024931,2]
[344600008,1733596244872,-1162.59,0.00024931,2]
[344600009,1733596244882,-500.0,0.00024931,2]
[344600010,1733596244892,-500.0,0.00024931,2]
[344600011,1733596244901,-199.66,0.00024931,2]
[344600012,1733596244911,-500.0,0.00024931,2]
[344600013,1733596244921,-150.84529978,0.00024931,2]
[344600014,1733596244930,-895.250022,0.00024931,7]
[344600015,1733596244940,-895.250022,0.00024931,7]
[344600016,1733596244950,-895.250022,0.00024931,7]
[344600017,1733596244959,-150.15,0.00024931,2]
[344600018,1733596244968,-895.250022,0.00024931,7]
[344600019,1733596244978,-895.250022,0.00024931,7]
[344600020,1733596244987,-895.250022,0.00024931,7]
[344600021,1733596244997,-508.97,0.00024931,2]
[344600022,1733596245007,-500.0,0.00024931,2]
[344600023,1733596245017,-500.0,0.00024931,2]
[344600024,1733596245028,-272.266511,0.00024931,7]
[344600025,1733596245040,-272.266511,0.00024931,7]
[344600026,1733596245050,-272.266511,0.00024931,7]
[344600027,1733596245060,-500.0,0.00024931,2]
[344600028,1733596245070,-500.0,0.00024931,2]
[344600029,1733596245080,-272.266511,0.00024931,7]
[344600030,1733596245090,-272.266511,0.00024931,7]
[344600031,1733596245100,-272.266511,0.00024931,7]
[344600032,1733596245111,-500.0,0.00024931,2]
[344600033,1733596245121,-500.0,0.00024931,2]
[344600034,1733596245130,-151.0,0.00024931,7]
[344600035,1733596245141,-151.0,0.00024931,7]
[344600036,1733596245150,-171.337598,0.00024931,7]
[344600037,1733596245160,-638.71,0.00024931,2]
[344600038,1733596245169,-438.190773,0.00024931,7]
[344600039,1733596245179,-438.190773,0.00024931,7]
[344600040,1733596245188,-438.190773,0.00024931,7]
[344600041,1733596245198,-500.0,0.00024931,2]
[344600042,1733596245207,-438.190773,0.00024931,7]
[344600043,1733596245216,-438.190773,0.00024931,7]
[344600044,1733596245226,-438.190773,0.00024931,7]
[344600045,1733596245236,-500.0,0.00024931,2]
[344600046,1733596245245,-500.0,0.00024931,2]
[344600047,1733596245254,-500.0,0.00024931,2]
[344600048,1733596245264,-500.0,0.00024931,2]
[344600049,1733596245273,-500.0,0.00024931,2]
[344600050,1733596245283,-208.139438,0.00024931,7]
[344600051,1733596245292,-208.139438,0.00024931,7]
[344600052,1733596245302,-208.139438,0.00024931,7]
[344600053,1733596245311,-1112.24,0.00024931,2]
[344600054,1733596245322,-534.98,0.00024931,2]
[344600055,1733596245332,-454.78033,0.00024931,7]